[Event "21th IPCA World Individual Chp."]
[Site "followchess.com"]
[Date "2022.05.10"]
[Round "2"]
[White "Obodchuk, Andrei"]
[Black "Cosic, Radoslav"]
[Result "1-0"]
[WhiteElo "2295"]
[BlackElo "2003"]
[ECO "B06"]
[WhiteFed "RUS"]
[BlackFed "CRO"]
[FCGameId "1787457867"]
[WhiteFideId "4114310"]
[BlackFideId "14504367"]
[TimeControl "5400+30"]

1. e4 {[%clk 1:30:42]} g6 {[%clk 1:29:51]} 2. d4 {[%clk 1:31:02]} d6 
{[%clk 1:30:11]} 3. Nc3 {[%clk 1:31:10]} Bg7 {[%clk 1:30:29]} 4. Nf3 
{[%clk 1:31:15]} Nf6 {[%clk 1:30:01]} 5. Bf4 {[%clk 1:31:32]} Bg4 
{[%clk 1:28:53]} 6. Qd2 {[%clk 1:29:54]} Bxf3 {[%clk 1:18:09]} 7. gxf3 
{[%clk 1:30:22]} Nc6 {[%clk 1:18:18]} 8. d5 {[%clk 1:30:25]} Ne5 
{[%clk 1:18:10]} 9. Be2 {[%clk 1:30:37]} h5 {[%clk 1:17:45]} 10. O-O-O 
{[%clk 1:30:23]} c6 {[%clk 1:15:05]} 11. Be3 {[%clk 1:27:54]} Qa5 
{[%clk 1:13:12]} 12. Kb1 {[%clk 1:27:36]} a6 {[%clk 1:08:30]} 13. h3 
{[%clk 1:17:38]} cxd5 {[%clk 1:08:12]} 14. Nxd5 {[%clk 1:17:55]} Qxd2 
{[%clk 1:08:31]} 15. Rxd2 {[%clk 1:16:42]} Nxd5 {[%clk 1:08:27]} 16. Rxd5 
{[%clk 1:16:49]} Nd7 {[%clk 1:02:31]} 17. Rdd1 {[%clk 1:16:22]} Rc8 
{[%clk 1:02:19]} 18. f4 {[%clk 1:16:28]} Nc5 {[%clk 1:00:45]} 19. Bf3 
{[%clk 1:16:33]} b5 {[%clk 1:00:45]} 20. Rhg1 {[%clk 1:10:32]} Bf6 
{[%clk 1:00:39]} 21. Rd5 {[%clk 1:05:13]} Ne6 {[%clk 0:55:59]} 22. e5 
{[%clk 1:04:31]} dxe5 {[%clk 0:53:37]} 23. fxe5 {[%clk 1:04:58]} Bh4 
{[%clk 0:52:00]} 24. a4 {[%clk 1:00:37]} Rc4 {[%clk 0:43:25]} 25. b3 
{[%clk 0:59:35]} Rc3 {[%clk 0:42:19]} 26. Kb2 {[%clk 0:56:08]} b4 
{[%clk 0:41:50]} 27. Be2 {[%clk 0:53:50]} O-O {[%clk 0:38:06]} 28. Bxh5 
{[%clk 0:50:25]} Rfc8 {[%clk 0:38:18]} 29. Bd1 {[%clk 0:47:51]} Kh7 
{[%clk 0:37:27]} 30. Rg4 {[%clk 0:47:55]} g5 {[%clk 0:36:50]} 31. Rxb4 
{[%clk 0:48:09]} R3c6 {[%clk 0:35:13]} 32. Rd7 {[%clk 0:47:57]} a5 
{[%clk 0:35:09]} 33. Rb5 {[%clk 0:47:47]} g4 {[%clk 0:35:35]} 34. hxg4 
{[%clk 0:47:59]} Nf8 {[%clk 0:34:05]} 35. Rd2 {[%clk 0:47:50]} Ng6 
{[%clk 0:33:29]} 36. Rxa5 {[%clk 0:47:07]} Rc3 {[%clk 0:32:05]} 37. Rd3 
{[%clk 0:46:02]} R3c6 {[%clk 0:31:22]} 38. c4 {[%clk 0:46:02]} f6 
{[%clk 0:30:16]} 39. exf6 {[%clk 0:44:37]} Bxf6+ {[%clk 0:30:41]} 40. Ka2 
{[%clk 0:44:45]} Re6 {[%clk 0:30:08]} 41. Bc2 {[%clk 0:44:21]} Kg7 
{[%clk 0:30:17]} 42. Rh5 {[%clk 0:42:40]} Ne5 {[%clk 0:26:56]} 43. g5 
{[%clk 0:42:37]} Nxd3 {[%clk 0:27:02]} 44. gxf6+ {[%clk 0:42:59]} exf6 
{[%clk 0:26:11]} 45. Bxd3 {[%clk 0:43:18]} Rd6 {[%clk 0:26:06]} 46. Rd5 
{[%clk 0:42:54]} 1-0

[Event "21th IPCA World Individual Chp."]
[Site "followchess.com"]
[Date "2022.05.10"]
[Round "2"]
[White "Gerasimova, Svetlana"]
[Black "Gurbanov, Andrei"]
[Result "1/2-1/2"]
[WhiteElo "1906"]
[BlackElo "2302"]
[ECO "C53"]
[WhiteFed "RUS"]
[BlackFed "ISR"]
[FCGameId "-305309427"]
[WhiteFideId "4145968"]
[BlackFideId "13503391"]
[TimeControl "5400+30"]

1. e4 {[%clk 1:30:57]} e5 {[%clk 1:30:26]} 2. Nf3 {[%clk 1:31:22]} Nc6 
{[%clk 1:30:53]} 3. Bc4 {[%clk 1:31:42]} Bc5 {[%clk 1:31:18]} 4. c3 
{[%clk 1:31:56]} Nf6 {[%clk 1:31:43]} 5. d4 {[%clk 1:31:50]} exd4 
{[%clk 1:32:07]} 6. cxd4 {[%clk 1:32:13]} Bb4+ {[%clk 1:32:33]} 7. Nbd2 
{[%clk 1:30:52]} Nxe4 {[%clk 1:27:26]} 8. d5 {[%clk 1:28:35]} Nxd2 
{[%clk 1:18:05]} 9. Bxd2 {[%clk 1:28:46]} Bxd2+ {[%clk 1:10:18]} 10. Qxd2 
{[%clk 1:28:52]} Ne7 {[%clk 1:10:20]} 11. d6 {[%clk 1:28:30]} cxd6 
{[%clk 1:09:20]} 12. Qxd6 {[%clk 1:27:09]} O-O {[%clk 1:08:01]} 13. O-O 
{[%clk 1:27:17]} Nf5 {[%clk 1:07:40]} 14. Qd2 {[%clk 1:26:46]} d6 
{[%clk 1:06:43]} 15. Rad1 {[%clk 1:25:57]} Be6 {[%clk 1:06:03]} 16. Bxe6 
{[%clk 1:23:59]} fxe6 {[%clk 1:06:24]} 17. Ng5 {[%clk 1:24:18]} Qf6 
{[%clk 1:05:26]} 18. Ne4 {[%clk 1:18:02]} Qg6 {[%clk 0:51:33]} 19. Qg5 
{[%clk 1:09:37]} Qxg5 {[%clk 0:45:43]} 20. Nxg5 {[%clk 1:09:59]} e5 
{[%clk 0:46:02]} 21. Ne4 {[%clk 1:03:11]} Rfd8 {[%clk 0:45:33]} 22. Rd5 
{[%clk 1:02:52]} Rac8 {[%clk 0:42:46]} 23. g4 {[%clk 0:52:45]} Nd4 
{[%clk 0:41:45]} 24. Rxd6 {[%clk 0:52:19]} Rxd6 {[%clk 0:41:23]} 25. Nxd6 
{[%clk 0:52:44]} Rc2 {[%clk 0:41:49]} 26. Kg2 {[%clk 0:47:57]} Rxb2 
{[%clk 0:39:58]} 27. Re1 {[%clk 0:48:01]} Nc6 {[%clk 0:39:11]} 28. a3 
{[%clk 0:39:29]} Rb3 {[%clk 0:35:27]} 29. Re3 {[%clk 0:34:51]} Rb6 
{[%clk 0:31:05]} 30. Rc3 {[%clk 0:29:37]} Nd8 {[%clk 0:29:43]} 31. Nc8 
{[%clk 0:25:17]} Ra6 {[%clk 0:29:18]} 32. Re3 {[%clk 0:21:01]} Nc6 
{[%clk 0:21:10]} 33. Nd6 {[%clk 0:19:35]} Nd8 {[%clk 0:15:28]} 34. Nc8 
{[%clk 0:16:08]} Nf7 {[%clk 0:11:21]} 35. Rb3 {[%clk 0:16:07]} b6 
{[%clk 0:10:05]} 36. Rc3 {[%clk 0:15:44]} Kf8 {[%clk 0:09:07]} 37. Rc7 
{[%clk 0:15:20]} Rxa3 {[%clk 0:09:24]} 38. Nxa7 {[%clk 0:15:28]} Nd6 
{[%clk 0:07:58]} 39. Rd7 {[%clk 0:14:36]} Nc4 {[%clk 0:02:55]} 40. Nc6 
{[%clk 0:14:34]} Ra8 {[%clk 0:03:18]} 41. Kf3 {[%clk 0:14:12]} Rc8 
{[%clk 0:02:22]} 42. Nb4 {[%clk 0:12:21]} Rc5 {[%clk 0:01:53]} 43. Nd3 
{[%clk 0:11:30]} Ra5 {[%clk 0:01:51]} 44. Nb4 {[%clk 0:10:39]} Ra4 
{[%clk 0:01:02]} 45. Nc6 {[%clk 0:09:34]} Ra3+ {[%clk 0:00:42]} 46. Ke4 
{[%clk 0:07:32]} Ra2 {[%clk 0:01:08]} 47. Kf3 {[%clk 0:07:26]} Nd2+ 
{[%clk 0:01:17]} 48. Kg2 {[%clk 0:05:46]} Nc4 {[%clk 0:01:46]} 49. Kg3 
{[%clk 0:05:36]} Rc2 {[%clk 0:01:42]} 50. Nb4 {[%clk 0:05:34]} Rc3+ 
{[%clk 0:01:30]} 51. Kg2 {[%clk 0:06:03]} Rb3 {[%clk 0:01:18]} 52. Nc6 
{[%clk 0:06:11]} b5 {[%clk 0:00:42]} 53. Rb7 {[%clk 0:06:14]} Rb2 
{[%clk 0:00:55]} 54. Kg3 {[%clk 0:05:40]} e4 {[%clk 0:00:55]} 55. Nd4 
{[%clk 0:05:41]} g6 {[%clk 0:00:33]} 56. Rxb5 {[%clk 0:05:56]} Rd2 
{[%clk 0:00:59]} 57. Ne6+ {[%clk 0:05:45]} Ke7 {[%clk 0:01:03]} 58. Ng5 
{[%clk 0:06:02]} e3 {[%clk 0:00:38]} 1/2-1/2

[Event "21th IPCA World Individual Chp."]
[Site "followchess.com"]
[Date "2022.05.10"]
[Round "2"]
[White "Campos, Eugenio"]
[Black "Babanov, Aleksandr"]
[Result "1-0"]
[WhiteElo "2247"]
[BlackElo "1929"]
[ECO "B01"]
[WhiteFed "ANG"]
[BlackFed "RUS"]
[FCGameId "-1095052987"]
[WhiteFideId "10100156"]
[BlackFideId "24117412"]
[TimeControl "5400+30"]

1. e4 {[%clk 1:30:54]} d5 {[%clk 1:30:14]} 2. exd5 {[%clk 1:31:09]} Qxd5 
{[%clk 1:30:38]} 3. c4 {[%clk 1:31:33]} Qd8 {[%clk 1:29:56]} 4. d4 
{[%clk 1:31:53]} Nf6 {[%clk 1:28:08]} 5. Nc3 {[%clk 1:31:18]} Bg4 
{[%clk 1:27:03]} 6. Nge2 {[%clk 1:27:32]} e6 {[%clk 1:26:20]} 7. h3 
{[%clk 1:23:54]} Bh5 {[%clk 1:24:27]} 8. g4 {[%clk 1:22:04]} Bg6 
{[%clk 1:24:51]} 9. Bg2 {[%clk 1:22:28]} c6 {[%clk 1:24:08]} 10. Nf4 
{[%clk 1:18:31]} Bd6 {[%clk 1:21:46]} 11. c5 {[%clk 1:14:02]} Bc7 
{[%clk 1:18:24]} 12. h4 {[%clk 1:13:01]} Ba5 {[%clk 1:01:36]} 13. f3 
{[%clk 1:01:43]} h5 {[%clk 0:55:25]} 14. Nxg6 {[%clk 0:58:40]} fxg6 
{[%clk 0:55:42]} 15. Qd3 {[%clk 0:58:58]} Kf7 {[%clk 0:54:03]} 16. Bg5 
{[%clk 0:59:16]} Qc7 {[%clk 0:54:04]} 17. O-O-O {[%clk 0:59:11]} Bxc3 
{[%clk 0:53:26]} 18. bxc3 {[%clk 0:59:16]} Qa5 {[%clk 0:52:05]} 19. Rd2 
{[%clk 0:51:44]} Qa3+ {[%clk 0:48:40]} 20. Rb2 Nd5 {[%clk 0:48:07]} 21. Bd2 
{[%clk 0:50:25]} Nd7 {[%clk 0:44:43]} 22. Kb1 {[%clk 0:50:28]} b5 
{[%clk 0:43:46]} 23. Re1 {[%clk 0:47:34]} Rab8 {[%clk 0:35:00]} 24. Rb3 
{[%clk 0:47:08]} Qa6 {[%clk 0:31:54]} 25. Qe4 {[%clk 0:47:09]} Nf8 
{[%clk 0:31:40]} 26. c4 {[%clk 0:47:00]} Nf6 {[%clk 0:27:27]} 27. Qf4 
{[%clk 0:46:59]} Rd8 {[%clk 0:24:09]} 28. g5 {[%clk 0:46:22]} bxc4 
{[%clk 0:23:58]} 29. Bf1 {[%clk 0:46:21]} e5 {[%clk 0:19:50]} 30. Rxe5 
{[%clk 0:46:16]} Ne6 {[%clk 0:19:37]} 31. Rxe6 {[%clk 0:45:55]} Kxe6 
{[%clk 0:19:30]} 32. gxf6 {[%clk 0:45:23]} gxf6 {[%clk 0:18:49]} 33. Rb4 
{[%clk 0:44:36]} Qc8 {[%clk 0:17:26]} 34. Bxc4+ {[%clk 0:44:22]} Ke7 
{[%clk 0:17:45]} 35. Qe4+ {[%clk 0:44:01]} Kf8 {[%clk 0:17:49]} 36. Qxg6 
{[%clk 0:44:16]} 1-0

[Event "21th IPCA World Individual Chp."]
[Site "followchess.com"]
[Date "2022.05.10"]
[Round "2"]
[White "Shapiro, Benny"]
[Black "Shchukina, Ekaterina"]
[Result "1-0"]
[WhiteElo "1884"]
[BlackElo "1496"]
[ECO "E60"]
[WhiteFed "ISR"]
[BlackFed "RUS"]
[FCGameId "-1483801504"]
[WhiteFideId "2801582"]
[BlackFideId "34103055"]
[TimeControl "5400+30"]

1. d4 {[%clk 1:30:55]} Nf6 {[%clk 1:30:50]} 2. Nf3 {[%clk 1:31:13]} g6 
{[%clk 1:30:04]} 3. c4 c5 4. d5 {[%clk 1:31:31]} b5 {[%clk 1:30:02]} 5. a4 
{[%clk 1:31:08]} bxc4 {[%clk 1:28:15]} 6. Nc3 {[%clk 1:30:50]} d6 
{[%clk 1:26:52]} 7. Nd2 {[%clk 1:30:46]} Nbd7 {[%clk 1:24:40]} 8. f4 
{[%clk 1:29:11]} Bb7 {[%clk 1:21:00]} 9. e4 {[%clk 1:28:41]} Bg7 
{[%clk 1:18:27]} 10. a5 O-O 11. Bxc4 Qc8 12. a6 {[%clk 1:27:26]} Bxd5 
{[%clk 1:11:01]} 13. Bxd5 {[%clk 1:25:18]} Rb8 {[%clk 1:11:22]} 14. Bb7 
{[%clk 1:24:34]} Qc7 {[%clk 1:11:37]} 15. O-O {[%clk 1:23:20]} Nb6 
{[%clk 1:09:04]} 16. Nb5 {[%clk 1:23:20]} Qd7 {[%clk 1:09:02]} 17. Nxa7 
{[%clk 1:22:47]} Rxb7 {[%clk 1:08:52]} 18. axb7 {[%clk 1:23:01]} Qxb7 
{[%clk 1:09:15]} 19. Nb5 {[%clk 1:21:23]} Qc6 {[%clk 1:08:22]} 20. Nc3 
{[%clk 1:20:43]} Nfd7 {[%clk 1:07:37]} 21. Nf3 {[%clk 1:20:20]} c4 
{[%clk 1:06:42]} 22. Be3 {[%clk 1:20:09]} Nc5 {[%clk 1:06:56]} 23. Bd4 
{[%clk 1:19:46]} Nd3 {[%clk 1:05:05]} 24. Bxg7 {[%clk 1:18:36]} Kxg7 
{[%clk 1:05:25]} 25. g3 {[%clk 1:18:13]} Nxb2 {[%clk 0:47:10]} 26. Qd4+ 
{[%clk 1:17:45]} Kg8 {[%clk 0:44:48]} 27. Nd5 {[%clk 1:15:38]} Nxd5 
{[%clk 0:45:07]} 28. exd5 {[%clk 1:15:50]} Qb5 {[%clk 0:43:36]} 29. Rfb1 
{[%clk 1:15:37]} Rb8 {[%clk 0:42:37]} 30. Ra2 {[%clk 1:15:09]} c3 
{[%clk 0:41:18]} 31. Qxc3 {[%clk 1:15:08]} Qxd5 {[%clk 0:40:13]} 32. Raxb2 
{[%clk 1:14:18]} Rxb2 {[%clk 0:40:25]} 33. Rxb2 {[%clk 1:14:30]} Qd1+ 
{[%clk 0:40:43]} 34. Kg2 {[%clk 1:14:45]} 1-0

[Event "21th IPCA World Individual Chp."]
[Site "followchess.com"]
[Date "2022.05.10"]
[Round "2"]
[White "Oliel, Yehonatan"]
[Black "Alperovich, Asher"]
[Result "0-1"]
[WhiteElo "1535"]
[BlackElo "1865"]
[ECO "B27"]
[WhiteFed "ISR"]
[BlackFed "ISR"]
[FCGameId "1112603764"]
[WhiteFideId "2834928"]
[BlackFideId "2803275"]
[TimeControl "5400+30"]

1. e4 {[%clk 1:30:03]} c5 {[%clk 1:30:54]} 2. Nf3 {[%clk 1:29:56]} g6 
{[%clk 1:31:20]} 3. d4 {[%clk 1:29:30]} cxd4 {[%clk 1:30:15]} 4. Qxd4 
{[%clk 1:27:18]} Nf6 {[%clk 1:30:18]} 5. Bb5 {[%clk 1:22:32]} a6 
{[%clk 1:28:56]} 6. Ba4 {[%clk 1:16:46]} b5 {[%clk 1:27:01]} 7. Bb3 
{[%clk 1:16:57]} Nc6 {[%clk 1:26:35]} 8. Qd3 {[%clk 1:15:49]} Bg7 
{[%clk 1:22:18]} 9. Nc3 {[%clk 1:14:25]} O-O {[%clk 1:19:28]} 10. Be3 
{[%clk 1:10:03]} d6 {[%clk 0:42:44]} 11. O-O-O {[%clk 1:08:45]} Bb7 
{[%clk 0:41:07]} 12. Nd2 {[%clk 1:02:36]} Rc8 {[%clk 0:38:10]} 13. f3 
{[%clk 0:59:16]} Qa5 {[%clk 0:37:40]} 14. g4 {[%clk 0:56:16]} Nb4 
{[%clk 0:36:04]} 15. Qf1 {[%clk 0:48:50]} Rxc3 16. bxc3 {[%clk 0:47:17]} Nxa2+ 
{[%clk 0:24:13]} 17. Bxa2 {[%clk 0:46:08]} Qxa2 {[%clk 0:22:51]} 18. Nb1 
{[%clk 0:45:14]} d5 {[%clk 0:20:13]} 19. e5 {[%clk 0:40:41]} Nd7 
{[%clk 0:19:56]} 20. f4 {[%clk 0:40:40]} Rc8 {[%clk 0:18:02]} 21. Bd4 
{[%clk 0:37:52]} Nc5 {[%clk 0:14:33]} 22. h4 {[%clk 0:24:40]} b4 
{[%clk 0:12:57]} 23. Qh3 {[%clk 0:21:48]} Ne4 {[%clk 0:05:19]} 24. Rd3 
{[%clk 0:15:32]} a5 {[%clk 0:02:15]} 25. Rh2 {[%clk 0:11:50]} Ba6 
{[%clk 0:02:13]} 26. Re3 {[%clk 0:10:23]} a4 27. cxb4 {[%clk 0:09:39]} a3 
{[%clk 0:00:38]} 28. Rxa3 {[%clk 0:08:30]} Qc4 {[%clk 0:01:00]} 29. c3 
{[%clk 0:06:42]} Qxd4 {[%clk 0:01:06]} 30. Rxa6 {[%clk 0:06:32]} Nxc3 
{[%clk 0:01:10]} 31. Rd2 {[%clk 0:01:38]} Nxb1+ {[%clk 0:01:02]} 32. Kxb1 
{[%clk 0:01:37]} Qxd2 {[%clk 0:01:25]} 33. Qa3 {[%clk 0:00:37]} Qc2+ 
{[%clk 0:00:58]} 34. Ka1 {[%clk 0:00:53]} f6 {[%clk 0:00:59]} 35. Ra8 
{[%clk 0:00:53]} 0-1

[Event "21th IPCA World Individual Chp."]
[Site "followchess.com"]
[Date "2022.05.09"]
[Round "1"]
[White "Yarmonov, Igor"]
[Black "Shapiro, Benny"]
[Result "1-0"]
[WhiteElo "2394"]
[BlackElo "1884"]
[ECO "D85"]
[WhiteFed "UKR"]
[BlackFed "ISR"]
[FCGameId "1422544100"]
[WhiteFideId "14114496"]
[BlackFideId "2801582"]
[TimeControl "5400+30"]

1. d4 {[%clk 1:30:49]} Nf6 {[%clk 1:30:48]} 2. c4 {[%clk 1:31:06]} g6 
{[%clk 1:31:09]} 3. Nc3 {[%clk 1:31:08]} d5 {[%clk 1:31:28]} 4. cxd5 
{[%clk 1:30:34]} Nxd5 {[%clk 1:31:44]} 5. Bd2 {[%clk 1:25:43]} Nxc3 
{[%clk 1:28:15]} 6. Bxc3 {[%clk 1:25:12]} Qd5 {[%clk 1:28:16]} 7. f3 
{[%clk 1:24:33]} f5 {[%clk 1:28:09]} 8. Qd3 {[%clk 1:23:31]} f4 {[%clk 1:27:41]} 
9. Qe4 {[%clk 1:21:17]} Qxe4 {[%clk 1:25:38]} 10. fxe4 {[%clk 1:21:43]} Bg7 
{[%clk 1:24:49]} 11. Nf3 {[%clk 1:21:40]} c5 {[%clk 1:22:06]} 12. e3 
{[%clk 1:20:44]} fxe3 {[%clk 1:20:14]} 13. dxc5 {[%clk 1:16:18]} Bxc3+ 
{[%clk 1:18:44]} 14. bxc3 {[%clk 1:16:42]} O-O {[%clk 1:16:55]} 15. Bc4+ 
{[%clk 1:17:00]} Kg7 {[%clk 1:15:28]} 16. Ke2 {[%clk 1:15:57]} Nd7 
{[%clk 1:13:59]} 17. c6 {[%clk 1:15:59]} bxc6 {[%clk 1:13:45]} 18. Kxe3 
{[%clk 1:16:23]} c5 {[%clk 1:11:35]} 19. Rab1 {[%clk 1:14:58]} Nb6 
{[%clk 1:10:24]} 20. Bb3 {[%clk 1:15:23]} Bd7 {[%clk 1:08:26]} 21. Ne5 
{[%clk 1:14:50]} Kf6 {[%clk 1:05:30]} 22. Nxd7+ {[%clk 1:13:02]} Nxd7 
{[%clk 1:05:26]} 23. Bd5 {[%clk 1:13:04]} Rab8 {[%clk 1:04:52]} 24. Rxb8 
{[%clk 1:11:45]} Nxb8 {[%clk 1:03:41]} 25. Rf1+ {[%clk 1:08:23]} Kg7 
{[%clk 1:04:05]} 26. Rb1 {[%clk 1:08:25]} Kf6 {[%clk 0:59:30]} 27. Rb7 
{[%clk 1:08:15]} e6 {[%clk 0:58:06]} 28. e5+ {[%clk 1:08:24]} Kxe5 
{[%clk 0:57:45]} 29. Bf3 {[%clk 1:08:50]} a6 {[%clk 0:56:26]} 30. Rxh7 
{[%clk 1:08:54]} Rc8 {[%clk 0:53:39]} 31. Ra7 {[%clk 1:07:36]} c4 
{[%clk 0:51:46]} 32. Ra8 {[%clk 1:06:49]} Rd8 {[%clk 0:51:35]} 33. Be4 
{[%clk 1:07:07]} g5 {[%clk 0:51:36]} 34. h3 {[%clk 1:07:15]} Rd1 
{[%clk 0:49:05]} 35. Bc2 {[%clk 0:56:56]} Rd8 {[%clk 0:49:14]} 36. a4 
{[%clk 0:57:03]} Rf8 {[%clk 0:48:05]} 37. a5 {[%clk 0:50:46]} Nd7 
{[%clk 0:47:29]} 38. Rxa6 {[%clk 0:50:15]} Nf6 {[%clk 0:47:31]} 39. Rc6 
{[%clk 0:42:27]} Nd5+ {[%clk 0:46:41]} 40. Kd2 {[%clk 0:42:54]} Rf2+ 
{[%clk 0:46:04]} 41. Kc1 {[%clk 0:43:20]} Ne3 {[%clk 0:43:46]} 42. Bb1 
{[%clk 0:40:43]} Rf1+ {[%clk 0:40:56]} 43. Kd2 {[%clk 0:41:10]} Nd5 
{[%clk 0:38:33]} 44. Bh7 {[%clk 0:40:22]} Rf2+ {[%clk 0:37:30]} 45. Kc1 
{[%clk 0:37:41]} Ra2 {[%clk 0:36:11]} 46. Rxc4 {[%clk 0:35:58]} Rxa5 
{[%clk 0:35:43]} 47. Rg4 {[%clk 0:30:32]} Kf6 {[%clk 0:35:20]} 48. Kd2 
{[%clk 0:30:39]} Kg7 {[%clk 0:33:39]} 49. Bc2 {[%clk 0:29:38]} Nf6 
{[%clk 0:32:59]} 50. Rb4 {[%clk 0:29:52]} Nd5 {[%clk 0:32:30]} 51. Re4 
{[%clk 0:28:17]} Kf6 {[%clk 0:31:19]} 52. Bb3 {[%clk 0:26:57]} Kf5 
{[%clk 0:30:03]} 53. Bxd5 {[%clk 0:25:20]} exd5 {[%clk 0:29:54]} 54. Rg4 
{[%clk 0:23:40]} Ra2+ {[%clk 0:27:25]} 55. Kd3 {[%clk 0:23:57]} Ra3 
{[%clk 0:27:00]} 56. Kd4 {[%clk 0:23:12]} Ra5 {[%clk 0:26:01]} 57. Rg3 
{[%clk 0:23:34]} Kf6 {[%clk 0:25:54]} 58. Re3 {[%clk 0:23:39]} Ra2 
{[%clk 0:24:58]} 59. Kxd5 {[%clk 0:21:10]} Rd2+ {[%clk 0:24:24]} 60. Kc6 
{[%clk 0:21:31]} Rxg2 {[%clk 0:24:34]} 61. c4 {[%clk 0:21:49]} g4 
{[%clk 0:23:25]} 62. hxg4 {[%clk 0:21:57]} Rxg4 {[%clk 0:23:52]} 63. c5 
{[%clk 0:22:24]} Rg1 {[%clk 0:23:37]} 64. Kd7 {[%clk 0:22:02]} Rd1+ 
{[%clk 0:23:47]} 65. Kc7 {[%clk 0:22:16]} Rd5 {[%clk 0:23:32]} 66. c6 
{[%clk 0:22:22]} Rd1 {[%clk 0:23:45]} 67. Kb7 {[%clk 0:22:41]} Rb1+ 
{[%clk 0:24:02]} 68. Kc8 {[%clk 0:22:41]} Rc1 {[%clk 0:24:11]} 69. c7 
{[%clk 0:22:41]} 1-0

[Event "21th IPCA World Individual Chp."]
[Site "followchess.com"]
[Date "2022.05.09"]
[Round "1"]
[White "Alperovich, Asher"]
[Black "Mikheev, Stanislav"]
[Result "0-1"]
[WhiteElo "1865"]
[BlackElo "2333"]
[ECO "D83"]
[WhiteFed "ISR"]
[BlackFed "SRB"]
[FCGameId "-1707979019"]
[WhiteFideId "2803275"]
[BlackFideId "4135920"]
[TimeControl "5400+30"]

1. d4 {[%clk 1:30:57]} Nf6 {[%clk 1:30:52]} 2. c4 {[%clk 1:31:14]} g6 
{[%clk 1:31:12]} 3. Nc3 {[%clk 1:28:57]} d5 {[%clk 1:31:30]} 4. Bf4 
{[%clk 1:29:09]} Bg7 {[%clk 1:31:43]} 5. Rc1 {[%clk 1:29:27]} O-O 
{[%clk 1:30:00]} 6. e3 {[%clk 1:29:43]} Be6 {[%clk 1:25:25]} 7. c5 
{[%clk 1:24:32]} c6 {[%clk 1:23:45]} 8. h3 {[%clk 1:23:14]} b6 {[%clk 1:18:56]} 
9. b4 {[%clk 1:22:07]} a5 {[%clk 1:18:43]} 10. a3 {[%clk 1:17:41]} axb4 
{[%clk 1:14:03]} 11. axb4 {[%clk 1:18:04]} Ra3 {[%clk 1:11:12]} 12. Bd3 
{[%clk 1:12:52]} bxc5 {[%clk 1:03:55]} 13. bxc5 {[%clk 1:10:48]} Qa5 
{[%clk 1:04:20]} 14. Qd2 {[%clk 0:45:33]} Na6 {[%clk 1:04:26]} 15. Nf3 
{[%clk 0:41:45]} Nd7 {[%clk 0:58:40]} 16. Nb1 {[%clk 0:29:54]} Nb4 
{[%clk 0:57:29]} 17. Be2 {[%clk 0:25:41]} Ra2 {[%clk 0:56:19]} 18. Bc7 
{[%clk 0:23:21]} Qxc7 {[%clk 0:53:01]} 19. Qxb4 {[%clk 0:23:30]} Rb8 
{[%clk 0:53:26]} 20. Qc3 {[%clk 0:22:08]} Rbb2 {[%clk 0:46:49]} 21. Nbd2 
{[%clk 0:21:30]} Nf6 {[%clk 0:46:50]} 22. Bd3 {[%clk 0:17:24]} Ne4 
{[%clk 0:39:07]} 23. Bxe4 {[%clk 0:02:09]} dxe4 {[%clk 0:39:17]} 24. Ng5 
{[%clk 0:01:25]} Rxd2 {[%clk 0:39:30]} 25. Qxd2 {[%clk 0:01:28]} Rxd2 
{[%clk 0:39:53]} 26. Kxd2 {[%clk 0:00:58]} Qa5+ {[%clk 0:39:16]} 27. Rc3 
{[%clk 0:00:52]} Bd5 {[%clk 0:39:36]} 28. h4 {[%clk 0:01:00]} e5 
{[%clk 0:39:42]} 29. Rb1 {[%clk 0:00:32]} Bf6 {[%clk 0:39:41]} 30. Rb8+ 
{[%clk 0:00:44]} Kg7 {[%clk 0:40:04]} 31. Kc2 {[%clk 0:00:39]} exd4 
{[%clk 0:40:25]} 32. exd4 {[%clk 0:01:07]} Bxd4 {[%clk 0:40:42]} 0-1

[Event "21th IPCA World Individual Chp."]
[Site "followchess.com"]
[Date "2022.05.09"]
[Round "1"]
[White "Zilberman, Yaacov"]
[Black "Aleksandrova, Aleksandra"]
[Result "1-0"]
[WhiteElo "2315"]
[BlackElo "1687"]
[ECO "D31"]
[WhiteFed "ISR"]
[BlackFed "ISR"]
[FCGameId "-1872882873"]
[WhiteFideId "2801612"]
[BlackFideId "4144198"]
[TimeControl "5400+30"]

1. d4 {[%clk 1:30:54]} d5 {[%clk 1:31:24]} 2. c4 {[%clk 1:31:14]} e6 
{[%clk 1:31:49]} 3. Nc3 {[%clk 1:31:34]} c6 {[%clk 1:32:06]} 4. e3 
{[%clk 1:31:39]} Bd6 {[%clk 1:32:25]} 5. f4 {[%clk 1:31:27]} Nd7 
{[%clk 1:31:11]} 6. Nf3 {[%clk 1:31:37]} Ne7 {[%clk 1:30:50]} 7. Bd3 
{[%clk 1:31:31]} dxc4 {[%clk 1:24:39]} 8. Bxc4 {[%clk 1:31:47]} Nd5 
{[%clk 1:25:03]} 9. O-O {[%clk 1:30:10]} Qa5 {[%clk 1:21:35]} 10. Bd2 
{[%clk 1:29:35]} Nxc3 {[%clk 1:20:06]} 11. bxc3 {[%clk 1:27:55]} Qh5 
{[%clk 1:19:33]} 12. Rb1 {[%clk 1:26:05]} O-O {[%clk 1:14:05]} 13. Bd3 
{[%clk 1:25:10]} f6 {[%clk 1:10:13]} 14. e4 {[%clk 1:23:00]} e5 {[%clk 1:06:09]} 
15. fxe5 {[%clk 1:15:11]} fxe5 {[%clk 1:04:57]} 16. Qb3+ {[%clk 1:10:56]} Kh8 
{[%clk 1:04:46]} 17. Ng5 {[%clk 1:09:17]} Nf6 {[%clk 1:01:40]} 18. h3 
{[%clk 1:06:21]} h6 {[%clk 0:56:51]} 19. Ne6 {[%clk 1:02:29]} Re8 
{[%clk 0:56:07]} 20. d5 {[%clk 1:02:10]} cxd5 {[%clk 0:51:07]} 21. exd5 
{[%clk 1:02:18]} e4 {[%clk 0:28:01]} 22. Bb5 {[%clk 1:02:07]} Bxe6 
{[%clk 0:22:50]} 23. dxe6 {[%clk 1:02:26]} Qc5+ {[%clk 0:16:31]} 24. Kh1 
{[%clk 1:02:20]} e3 {[%clk 0:16:39]} 25. Be1 {[%clk 0:57:42]} Qe5 
{[%clk 0:12:44]} 26. g3 {[%clk 0:57:42]} e2 {[%clk 0:10:21]} 27. Rf3 
{[%clk 0:55:46]} Rxe6 {[%clk 0:06:32]} 28. Rb2 {[%clk 0:54:37]} Qe4 
{[%clk 0:05:04]} 29. Kg2 {[%clk 0:53:23]} Nd5 {[%clk 0:04:18]} 30. Rxe2 
{[%clk 0:53:17]} Nf4+ {[%clk 0:01:04]} 31. gxf4 {[%clk 0:53:29]} Rg6+ 
{[%clk 0:01:33]} 32. Bg3 {[%clk 0:53:23]} Rxg3+ {[%clk 0:00:38]} 33. Kxg3 
{[%clk 0:53:32]} Qg6+ {[%clk 0:00:58]} 34. Kh2 {[%clk 0:52:19]} Rf8 
{[%clk 0:01:26]} 35. Qe6 {[%clk 0:51:25]} Rf6 {[%clk 0:00:54]} 36. Qe8+ 
{[%clk 0:51:34]} Rf8 {[%clk 0:01:23]} 1-0